[Event "EYTCC Open U18 2018"]
[Site "Bad Blankeburg"]
[Date "2018.07.13"]
[Round "2"]
[White "Banzea, Alexandru Bogdan"]
[Black "Buckels, Valentin"]
[Result "1/2-1/2"]
[ECO "C84"]
[WhiteElo "2337"]
[BlackElo "2353"]
[Annotator "NA"]
[PlyCount "120"]
[EventDate "2018.07.12"]
[EventType "swiss"]
[EventCountry "GER"]
[SourceTitle "playchess.com"]
[Source "ChessBase"]
[SourceQuality "1"]
[TimeControl "40/5400+30:1800+30"]

1. e4 {[%emt 0:00:51]} e5 {[%emt 0:00:00]} 2. Nf3 {[%emt 0:00:17]} Nc6 {[%emt 0:00:00]} 3. Bb5 {[%emt 0:00:09]} a6 {[%emt 0:00:00]} 4. Ba4 {[%emt 0:00:05]} Nf6 {[%emt 0:00:00]} 5. O-O {[%emt 0:00:11]} Be7 {[%emt 0:00:00]} 6. d3 {[%emt 0:00:09]} b5 {[%emt 0:00:07]} 7. Bb3 {[%emt 0:00:07]} d6 {[%emt 0:00:04]} 8. a3 {[%emt 0:00:16]} O-O {[%emt 0:00:13]} 9. Nc3 {[%emt 0:00:13]} Bg4 {[%emt 0:00:34]} 10. Be3 {[%emt 0:00:19]} Nd4 {[%emt 0:00:13] C84: Closed Ruy Lopez: Unusual White 6th moves} 11. Bxd4 {[%emt 0:00:37]} exd4 {[%emt 0:00:08]} 12. Nd5 {[%emt 0:00:05]} Nd7 {[%emt 0:00:15]} (12... Nxd5 13. Bxd5 Rc8 14. a4 c6 15. Bb3 d5 16. h3 Bh5 17. axb5 axb5 18. exd5 {1-0 (47) Karjakin,S (2782)-Aronian,L (2764) Paris 2018}) 13. h3 {[%emt 0:01:02]} Bxf3 {[%emt 0:00:06]} 14. Nxe7+ {[%emt 0:03:21]} Qxe7 {[%emt 0:00:25]} 15. Qxf3 {[%emt 0:00:10]} Rac8 {[%emt 0:10:40] [#]} 16. Qg3 $146 {[%emt 0:09:19]} ({Predecessor:} 16. Qe2 Nc5 17. Ba2 Nd7 18. Bb3 Nc5 19. Ba2 Na4 20. Rab1 {½-½ (20) Yemelin,V (2558)-Danin,A (2602) Tallinn 2014}) 16... Nc5 {[%emt 0:01:08]} 17. Ba2 {[%emt 0:00:58]} Na4 {[%emt 0:00:20]} 18. Rab1 {[%emt 0:00:18]} c5 {[%emt 0:02:16]} 19. f4 {[%emt 0:01:15]} Nb6 {[%emt 0:05:42]} 20. Qe1 {[%emt 0:03:13]} Rfe8 {[%emt 0:12:24]} 21. Qa5 {[%emt 0:03:28]} Qb7 $11 {[%emt 0:05:28]} 22. Rbe1 {[%emt 0:04:02]} Re7 {[%emt 0:05:46]} 23. g4 {[%emt 0:04:50]} c4 {[%emt 0:05:54]} 24. Qd2 {[%emt 0:02:10]} Rce8 {[%emt 0:06:20]} 25. Qf2 {[%emt 0:01:24]} d5 {[%emt 0:09:07]} 26. e5 {[%emt 0:01:13]} Nd7 {[%emt 0:02:04]} 27. Qxd4 {[%emt 0:02:02]} f6 {[%emt 0:03:10]} 28. dxc4 {[%emt 0:23:40]} dxc4 {[%emt 0:00:28]} 29. b3 {[%emt 0:04:56]} fxe5 {[%emt 0:02:02]} 30. Qf2 {[%emt 0:01:57]} e4 {[%emt 0:12:49]} 31. bxc4 {[%emt 0:01:50]} e3 {[%emt 0:00:15]} 32. Qf3 {[%emt 0:03:28]} Qa7 {[%emt 0:01:39]} 33. Re2 {[%emt 0:00:52]} Kh8 {[%emt 0:00:33]} 34. cxb5 {[%emt 0:15:28]} axb5 {[%emt 0:00:42]} 35. Bd5 {[%emt 0:00:26]} Rf8 {[%emt 0:04:22]} 36. Rd1 {[%emt 0:06:44]} Qxa3 {[%emt 0:05:35]} 37. Kg2 {[%emt 0:00:26]} Qc5 {[%emt 0:01:24]} 38. Bb3 {[%emt 0:02:10]} Nb6 {[%emt 0:01:11]} 39. Rd3 {[%emt 0:01:36]} Rfe8 {[%emt 0:00:22]} 40. f5 {[%emt 0:01:00]} Nc4 {[%emt 0:05:07]} 41. Qd5 {[%emt 0:04:28]} Qb6 {[%emt 0:15:21]} 42. Bxc4 {[%emt 0:01:45]} bxc4 {[%emt 0:00:12]} 43. Qxc4 {[%emt 0:00:34]} Re4 {[%emt 0:01:36]} 44. Qd5 {[%emt 0:04:28]} Qb8 {[%emt 0:04:34]} 45. Qd6 {[%emt 0:03:40]} Qa8 {[%emt 0:01:09]} 46. Kh2 {[%emt 0:03:42]} R4e5 {[%emt 0:06:10]} 47. Kg3 {[%emt 0:03:51]} Qa1 {[%emt 0:01:11]} 48. Rd1 {[%emt 0:01:03]} Qa8 {[%emt 0:01:44]} 49. c4 {[%emt 0:03:02]} Qc8 {[%emt 0:01:19]} 50. Rd5 {[%emt 0:02:16]} Rxd5 {[%emt 0:01:18]} 51. Qxd5 {[%emt 0:02:55]} Qb8+ {[%emt 0:00:18]} 52. Kg2 {[%emt 0:00:38]} Qf4 {[%emt 0:00:48]} 53. c5 {[%emt 0:00:16]} h5 {[%emt 0:00:32]} 54. f6 {[%emt 0:02:27]} Re5 {[%emt 0:00:15]} 55. fxg7+ {[%emt 0:03:24]} Kxg7 {[%emt 0:00:01]} 56. Qf3 {[%emt 0:01:08]} Qxf3+ {[%emt 0:00:29]} 57. Kxf3 {[%emt 0:00:09]} hxg4+ {[%emt 0:00:07]} 58. hxg4 {[%emt 0:00:11]} Rxc5 {[%emt 0:00:05]} 59. Rxe3 {[%emt 0:00:06]} Kg6 {[%emt 0:00:12]} 60. Kg3 {[%emt 0:00:25]} Kg5 {[%emt 0:00:11]} 1/2-1/2

[Event "EYTCC Open U18 2018"]
[Site "Bad Blankeburg"]
[Date "2018.07.13"]
[Round "2"]
[White "Urban, Konstantin"]
[Black "Stoleriu, George"]
[Result "1/2-1/2"]
[ECO "E00"]
[WhiteElo "2325"]
[BlackElo "2347"]
[Annotator "NA"]
[PlyCount "111"]
[EventDate "2018.07.12"]
[EventType "swiss"]
[EventCountry "GER"]
[SourceTitle "playchess.com"]
[Source "ChessBase"]
[SourceQuality "1"]
[TimeControl "40/5400+30:1800+30"]

1. d4 {[%emt 0:00:00]} e6 {[%emt 0:00:00]} 2. c4 {[%emt 0:00:00]} Bb4+ {[%emt 0:04:02]} 3. Nc3 {[%emt 0:01:27]} f5 {[%emt 0:02:24]} 4. Bd2 {[%emt 0:06:53]} Nf6 {[%emt 0:00:30]} 5. Nf3 {[%emt 0:00:28]} O-O {[%emt 0:00:52]} 6. g3 {[%emt 0:01:54]} b6 {[%emt 0:01:05]} 7. Bg2 {[%emt 0:00:44]} Bb7 {[%emt 0:00:04]} 8. O-O {[%emt 0:05:12]} Bxc3 {[%emt 0:02:15]} 9. Bxc3 {[%emt 0:00:25]} Ne4 {[%emt 0:00:47]} 10. Qc2 {[%emt 0:06:49]} Nxc3 {[%emt 0:02:26]} 11. Qxc3 {[%emt 0:01:31]} Qf6 {[%emt 0:07:31]} 12. c5 $11 {[%emt 0:12:03]} Be4 {[%emt 0:23:54]} 13. cxb6 {[%emt 0:12:45]} cxb6 {[%emt 0:01:57]} 14. Ne5 {[%emt 0:04:47]} Bxg2 {[%emt 0:14:59]} 15. Kxg2 {[%emt 0:00:16]} Qd8 {[%emt 0:08:19]} 16. Rac1 {[%emt 0:16:26]} d6 {[%emt 0:05:46]} 17. Nd3 {[%emt 0:00:25]} Nd7 {[%emt 0:06:12]} 18. Qb4 {[%emt 0:01:51]} Nf6 {[%emt 0:02:19]} 19. Rc6 {[%emt 0:00:47]} Ne4 {[%emt 0:06:37]} 20. f3 {[%emt 0:06:31]} Qd7 {[%emt 0:00:07]} 21. Rfc1 {[%emt 0:02:47]} Nc5 {[%emt 0:00:10]} 22. Qb5 {[%emt 0:00:35]} Nxd3 {[%emt 0:07:04]} 23. Qxd3 {[%emt 0:00:11]} Rac8 {[%emt 0:00:11]} 24. Qc3 {[%emt 0:00:32]} Rxc6 {[%emt 0:00:27]} 25. Qxc6 {[%emt 0:00:01]} Rd8 {[%emt 0:00:15]} 26. Qxd7 {[%emt 0:01:26]} Rxd7 {[%emt 0:00:03]} 27. Kf2 {[%emt 0:01:15]} Kf7 {[%emt 0:00:05]} 28. b4 {[%emt 0:02:12]} b5 {[%emt 0:00:56]} 29. e4 {[%emt 0:01:27]} fxe4 {[%emt 0:01:20]} 30. fxe4 {[%emt 0:00:05]} Ke7 {[%emt 0:00:43]} 31. Ke3 {[%emt 0:00:37]} Rd8 {[%emt 0:01:34]} 32. Rc7+ {[%emt 0:00:11]} Rd7 {[%emt 0:00:03]} 33. Rc6 {[%emt 0:00:43]} Rd8 {[%emt 0:00:48]} 34. h4 {[%emt 0:01:20]} Rd7 {[%emt 0:00:33]} 35. h5 {[%emt 0:01:24]} Rd8 {[%emt 0:00:35]} 36. Kf4 {[%emt 0:00:53]} h6 {[%emt 0:00:23]} 37. Kg4 {[%emt 0:01:11]} Rd7 {[%emt 0:00:23]} 38. Kf4 {[%emt 0:01:59]} Rd8 {[%emt 0:00:13]} 39. d5 {[%emt 0:00:19]} Rf8+ {[%emt 0:00:57]} 40. Kg4 {[%emt 0:00:17]} Rd8 {[%emt 0:00:29]} 41. Rc7+ {[%emt 0:32:17]} Rd7 {[%emt 0:00:49]} 42. Rc8 {[%emt 0:00:00]} a5 {[%emt 0:13:53]} 43. bxa5 {[%emt 0:00:00]} Ra7 {[%emt 0:00:36]} 44. Rb8 {[%emt 0:00:00]} Rxa5 {[%emt 0:05:27]} 45. Rb7+ {[%emt 0:00:00]} Kf6 {[%emt 0:00:06]} 46. dxe6 {[%emt 0:00:00]} Rxa2 {[%emt 0:00:47]} 47. e7 {[%emt 0:00:00]} Ra8 {[%emt 0:01:22]} 48. Rd7 {[%emt 0:00:00]} Re8 {[%emt 0:00:06]} 49. Rxd6+ {[%emt 0:00:00]} Ke5 {[%emt 0:00:10]} 50. Rd7 {[%emt 0:00:00]} Kxe4 {[%emt 0:00:37]} 51. Rb7 {[%emt 0:00:00]} Ke5 {[%emt 0:00:59]} 52. Rxb5+ {[%emt 0:00:00]} Kf6 {[%emt 0:00:37]} 53. Rb6+ {[%emt 0:00:00]} Kxe7 {[%emt 0:00:25]} 54. Kf5 {[%emt 0:00:00]} Kf7 {[%emt 0:00:07]} 55. Rb7+ {[%emt 0:00:00]} Re7 {[%emt 0:00:04]} 56. Rb6 1/2-1/2

[Event "EYTCC Open U18 2018"]
[Site "Bad Blankeburg"]
[Date "2018.07.13"]
[Round "2"]
[White "Vasiesiu, Victor"]
[Black "Roseneck, Jonas"]
[Result "1-0"]
[ECO "B23"]
[WhiteElo "2295"]
[BlackElo "2182"]
[Annotator "NA"]
[PlyCount "45"]
[EventDate "2018.07.12"]
[EventType "swiss"]
[EventCountry "GER"]
[SourceTitle "playchess.com"]
[Source "ChessBase"]
[SourceQuality "1"]
[TimeControl "40/5400+30:1800+30"]

1. e4 {[%emt 0:01:06]} c5 {[%emt 0:00:00]} 2. Nc3 {[%emt 0:00:26]} d6 {[%emt 0:00:00]} 3. d4 {[%emt 0:00:06]} cxd4 {[%emt 0:01:22]} 4. Qxd4 {[%emt 0:00:09]} Nc6 {[%emt 0:05:47]} 5. Qd2 {[%emt 0:00:12]} g6 {[%emt 0:02:18]} 6. b3 {[%emt 0:00:20]} Bg7 {[%emt 0:00:03]} 7. Bb2 {[%emt 0:00:07]} Nf6 {[%emt 0:01:59]} 8. O-O-O {[%emt 0:00:47]} O-O {[%emt 0:02:09]} 9. f3 {[%emt 0:02:49]} Be6 {[%emt 0:18:47]} 10. Kb1 {[%emt 0:03:30]} a6 {[%emt 0:13:27]} 11. Nge2 {[%emt 0:02:01]} Qa5 {[%emt 0:01:56]} 12. g4 $16 {[%emt 0:15:25]} Rfc8 {[%emt 0:10:18]} 13. h4 {[%emt 0:04:52]} h5 {[%emt 0:05:53]} 14. gxh5 {[%emt 0:19:05]} Nxh5 {[%emt 0:00:26]} 15. f4 {[%emt 0:00:25]} Bg4 {[%emt 0:06:53]} 16. Rg1 {[%emt 0:08:25]} Bxe2 {[%emt 0:06:34]} 17. Bxe2 {[%emt 0:00:03]} Nxf4 {[%emt 0:00:08]} 18. Qxf4 {[%emt 0:00:58]} Bxc3 {[%emt 0:00:09]} 19. Bc4 {[%emt 0:06:50]} Ne5 {[%emt 0:06:18]} 20. Bxf7+ {[%emt 0:11:05]} Nxf7 {[%emt 0:02:31]} 21. Rxg6+ {[%emt 0:00:14]} Kf8 {[%emt 0:00:10]} 22. Rf1 {[%emt 0:00:43]} Ke8 {[%emt 0:02:16]} 23. Qxf7+ 1-0

[Event "EYTCC Open U18 2018"]
[Site "Bad Blankeburg"]
[Date "2018.07.13"]
[Round "2"]
[White "Kopylov, Daniel"]
[Black "Szustakowski, Antoni"]
[Result "1/2-1/2"]
[ECO "C01"]
[WhiteElo "2272"]
[BlackElo "2330"]
[Annotator "NA"]
[PlyCount "76"]
[EventDate "2018.07.12"]
[EventType "swiss"]
[EventCountry "GER"]
[SourceTitle "playchess.com"]
[Source "ChessBase"]
[SourceQuality "1"]
[TimeControl "40/5400+30:1800+30"]

1. e4 {[%emt 0:00:00]} e6 {[%emt 0:00:00]} 2. d4 {[%emt 0:00:00]} d5 {[%emt 0:00:00]} 3. exd5 {[%emt 0:00:37]} exd5 {[%emt 0:00:00]} 4. Nf3 {[%emt 0:00:09]} Bd6 {[%emt 0:00:09]} 5. c4 {[%emt 0:00:34]} Nf6 {[%emt 0:00:08]} 6. Nc3 {[%emt 0:00:16]} O-O {[%emt 0:00:07]} 7. cxd5 {[%emt 0:00:32]} Nbd7 {[%emt 0:00:19]} 8. Bg5 {[%emt 0:01:04]} Be7 {[%emt 0:02:10]} 9. Qb3 {[%emt 0:13:11]} Nb6 {[%emt 0:05:04]} 10. Bxf6 {[%emt 0:03:10]} Bxf6 {[%emt 0:00:08]} 11. Be2 {[%emt 0:00:33]} a5 {[%emt 0:14:18]} 12. a4 {[%emt 0:02:43]} Bg4 {[%emt 0:00:19]} 13. O-O {[%emt 0:05:19]} Bxf3 {[%emt 0:04:54]} 14. Bxf3 {[%emt 0:00:10]} Bxd4 {[%emt 0:00:04]} 15. Rad1 $11 {[%emt 0:14:27]} Bxc3 {[%emt 0:10:04]} 16. bxc3 {[%emt 0:04:01]} Qd6 {[%emt 0:00:08]} 17. c4 {[%emt 0:10:37]} Rfb8 {[%emt 0:11:08]} 18. Rfe1 {[%emt 0:05:40]} Nd7 {[%emt 0:11:59]} 19. Re3 {[%emt 0:03:15]} b6 {[%emt 0:02:48]} 20. Rde1 {[%emt 0:04:02]} Nf6 {[%emt 0:02:58]} 21. Qb5 {[%emt 0:12:52]} Kf8 {[%emt 0:03:29]} 22. Rc1 {[%emt 0:01:57]} Nd7 {[%emt 0:02:17]} 23. Bg4 {[%emt 0:00:45]} Nc5 {[%emt 0:01:22]} 24. Rce1 {[%emt 0:00:23]} Rd8 {[%emt 0:01:38]} 25. g3 {[%emt 0:01:33]} Rab8 {[%emt 0:02:13]} 26. h4 {[%emt 0:03:18]} Kg8 {[%emt 0:10:06]} 27. h5 {[%emt 0:03:57]} h6 {[%emt 0:01:38]} 28. Bd1 {[%emt 0:01:01]} Nd7 {[%emt 0:01:04]} 29. Qc6 {[%emt 0:02:45]} Qxc6 {[%emt 0:02:15]} 30. dxc6 {[%emt 0:00:04]} Nf6 {[%emt 0:00:07]} 31. Re7 {[%emt 0:02:41]} Re8 {[%emt 0:00:08]} 32. Kf1 {[%emt 0:00:15]} Rbc8 {[%emt 0:01:47]} 33. Bf3 {[%emt 0:02:50]} Kf8 {[%emt 0:01:46]} 34. R7e5 {[%emt 0:00:48]} Rxe5 {[%emt 0:00:59]} 35. Rxe5 {[%emt 0:00:02]} Re8 {[%emt 0:00:45]} 36. Rb5 {[%emt 0:01:40]} Ne4 {[%emt 0:00:52]} 37. Bxe4 {[%emt 0:00:40]} Rxe4 {[%emt 0:00:03]} 38. c5 {[%emt 0:00:16]} Rxa4 {[%emt 0:00:06]} 1/2-1/2

[Event "EYTCC Open U18 2018"]
[Site "Bad Blankeburg"]
[Date "2018.07.13"]
[Round "2"]
[White "Bohus, Adam"]
[Black "Morgunov, Marc"]
[Result "0-1"]
[ECO "E11"]
[WhiteElo "2231"]
[BlackElo "2362"]
[Annotator "NA"]
[PlyCount "84"]
[EventDate "2018.07.12"]
[EventType "swiss"]
[EventCountry "GER"]
[SourceTitle "playchess.com"]
[Source "ChessBase"]
[SourceQuality "1"]
[TimeControl "40/5400+30:1800+30"]

1. d4 {[%emt 0:00:00]} Nf6 {[%emt 0:00:00]} 2. c4 {[%emt 0:00:00]} e6 {[%emt 0:00:00]} 3. Nf3 {[%emt 0:00:29]} Bb4+ {[%emt 0:00:00]} 4. Nbd2 {[%emt 0:02:40]} b6 {[%emt 0:00:29]} 5. a3 {[%emt 0:03:58]} Bxd2+ {[%emt 0:00:12]} 6. Qxd2 {[%emt 0:05:28]} Bb7 {[%emt 0:00:09]} 7. e3 {[%emt 0:01:20]} d6 {[%emt 0:00:37]} 8. Be2 {[%emt 0:04:43]} Nbd7 {[%emt 0:01:10]} 9. b4 {[%emt 0:06:11]} O-O {[%emt 0:01:01]} 10. Bb2 {[%emt 0:01:11]} Ne4 {[%emt 0:01:06]} 11. Qc2 {[%emt 0:03:39]} f5 {[%emt 0:02:08]} 12. Rd1 {[%emt 0:09:12]} Qe7 {[%emt 0:07:56]} 13. d5 {[%emt 0:07:57]} e5 $14 {[%emt 0:01:24]} 14. Bd3 {[%emt 0:17:40]} Ndf6 {[%emt 0:07:44]} 15. Nd2 {[%emt 0:03:54]} Nxf2 {[%emt 0:08:21]} 16. Kxf2 {[%emt 0:00:22]} Ng4+ {[%emt 0:00:06]} 17. Ke2 {[%emt 0:03:39]} e4 {[%emt 0:05:08]} 18. h3 {[%emt 0:07:27]} exd3+ {[%emt 0:03:05]} 19. Qxd3 {[%emt 0:00:07]} Nh6 {[%emt 0:07:12]} 20. Rde1 {[%emt 0:10:30]} c6 {[%emt 0:08:02]} 21. dxc6 {[%emt 0:04:29]} Bxc6 {[%emt 0:00:07]} 22. Nf3 {[%emt 0:01:48]} Be4 {[%emt 0:01:53]} 23. Qc3 {[%emt 0:01:53]} Rac8 {[%emt 0:06:15]} 24. Nd2 {[%emt 0:01:49]} d5 {[%emt 0:00:26]} 25. Nxe4 {[%emt 0:01:15]} fxe4 {[%emt 0:02:40]} 26. Rhf1 {[%emt 0:00:35]} Rxc4 {[%emt 0:04:38]} 27. Rxf8+ {[%emt 0:00:08]} Kxf8 {[%emt 0:00:10]} 28. Rf1+ {[%emt 0:00:37]} Kg8 {[%emt 0:01:00]} 29. Qd2 {[%emt 0:00:07]} Qe6 {[%emt 0:02:46]} 30. Rd1 {[%emt 0:00:28]} Nf5 {[%emt 0:00:31]} 31. Qxd5 {[%emt 0:00:36]} Rc2+ {[%emt 0:00:10]} 32. Ke1 {[%emt 0:00:10]} Qxd5 {[%emt 0:01:08]} 33. Rxd5 {[%emt 0:00:02]} Nxe3 {[%emt 0:00:40]} 34. Rd8+ {[%emt 0:00:01]} Kf7 {[%emt 0:00:08]} 35. Bd4 {[%emt 0:00:44]} Nxg2+ {[%emt 0:00:48]} 36. Kd1 {[%emt 0:01:38]} Ra2 {[%emt 0:00:58]} 37. Rd7+ {[%emt 0:00:28]} Ke6 {[%emt 0:00:16]} 38. Rd8 {[%emt 0:01:04]} Rxa3 {[%emt 0:04:26]} 39. Re8+ {[%emt 0:00:29]} Kf7 {[%emt 0:04:12]} 40. Rxe4 {[%emt 0:00:34]} Rxh3 {[%emt 0:00:22]} 41. Ke2 {[%emt 0:03:57]} Rh4 {[%emt 0:01:31]} 42. Kf3 {[%emt 0:00:14]} Ne1+ {[%emt 0:00:53]} 0-1

[Event "EYTCC Open U18 2018"]
[Site "Bad Blankeburg"]
[Date "2018.07.14"]
[Round "3"]
[White "Nikitenko, Mihail"]
[Black "Banzea, Alexandru-Bogdan"]
[Result "1-0"]
[ECO "B10"]
[WhiteElo "2371"]
[BlackElo "2337"]
[Annotator "NA"]
[PlyCount "93"]
[EventDate "2018.07.12"]
[EventType "swiss"]
[EventCountry "GER"]
[SourceTitle "playchess.com"]
[Source "ChessBase"]
[SourceQuality "1"]
[TimeControl "40/5400+30:1800+30"]

1. e4 {[%emt 0:00:00]} c6 {[%emt 0:00:00]} 2. Nc3 {[%emt 0:00:00]} d5 {[%emt 0:00:00]} 3. Nf3 {[%emt 0:00:00]} Nf6 {[%emt 0:00:00]} 4. e5 {[%emt 0:00:00]} Ne4 {[%emt 0:00:00]} 5. Ne2 {[%emt 0:00:03]} Qb6 {[%emt 0:00:04] B11: Caro-Kann: Two Knights Variation} 6. d4 {[%emt 0:00:13]} e6 {[%emt 0:00:15]} 7. Nfg1 {[%emt 0:00:08]} f6 {[%emt 0:00:09]} 8. f3 {[%emt 0:00:22]} Ng5 {[%emt 0:00:15]} 9. exf6 {[%emt 0:00:07]} gxf6 {[%emt 0:00:05]} 10. f4 {[%emt 0:00:04]} Nf7 {[%emt 0:00:04]} 11. Ng3 {[%emt 0:00:38]} e5 {[%emt 0:01:32]} 12. Nf3 {[%emt 0:00:22]} Bg4 $146 {[%emt 0:03:54]} ({Predecessor:} 12... e4 13. Nh4 {1-0 (46) Lu,S (2627)-Tari,A (2584) Doha 2016}) 13. Be2 {[%emt 0:02:57]} e4 {[%emt 0:03:08]} 14. Nh4 {[%emt 0:03:20]} Bxe2 {[%emt 0:00:47]} 15. Nxe2 {[%emt 0:00:18]} Nd7 {[%emt 0:05:10]} 16. Nf5 {[%emt 0:04:25]} O-O-O {[%emt 0:05:05]} 17. Ne3 {[%emt 0:00:32]} Nd6 {[%emt 0:03:00]} 18. O-O {[%emt 0:02:15]} h5 {[%emt 0:18:54]} 19. b3 {[%emt 0:00:53]} Qa6 {[%emt 0:03:54]} 20. a4 {[%emt 0:01:38]} Kb8 {[%emt 0:05:41]} 21. Ba3 {[%emt 0:01:15]} Ka8 {[%emt 0:10:35]} 22. Qd2 {[%emt 0:00:13]} h4 {[%emt 0:03:03]} 23. f5 {[%emt 0:03:19]} Ne8 {[%emt 0:03:27]} 24. Nf4 {[%emt 0:01:33]} Bxa3 {[%emt 0:00:29]} 25. Rxa3 {[%emt 0:04:16]} Nf8 {[%emt 0:00:47]} 26. b4 {[%emt 0:09:58]} Nd6 {[%emt 0:01:30]} 27. Qc3 {[%emt 0:00:55]} Rh7 {[%emt 0:04:21]} 28. b5 {[%emt 0:06:01]} cxb5 {[%emt 0:03:08]} 29. Nfxd5 {[%emt 0:00:31]} Nc4 {[%emt 0:07:21]} 30. axb5 {[%emt 0:06:17]} Qxa3 {[%emt 0:01:11]} 31. Qxc4 $14 {[%emt 0:00:04]} Kb8 {[%emt 0:02:40]} 32. Qe2 {[%emt 0:03:27]} Qb2 {[%emt 0:01:41]} 33. Rd1 {[%emt 0:12:27]} Rhd7 {[%emt 0:01:34]} 34. Qc4 {[%emt 0:00:04]} Rc8 {[%emt 0:04:25]} 35. Qb4 {[%emt 0:00:05]} Qxb4 {[%emt 0:00:55]} 36. Nxb4 {[%emt 0:00:04]} Rdc7 {[%emt 0:00:52]} 37. Nbd5 {[%emt 0:00:50]} Rxc2 {[%emt 0:00:50]} 38. Nxc2 {[%emt 0:00:18]} Rxc2 {[%emt 0:00:07]} 39. Re1 {[%emt 0:01:41]} Kc8 {[%emt 0:04:51]} 40. Rxe4 {[%emt 0:00:23]} Kd8 {[%emt 0:00:45]} 41. Nxf6 {[%emt 0:30:10]} Rc8 {[%emt 0:33:07]} 42. g4 {[%emt 0:03:01]} hxg3 {[%emt 0:00:00]} 43. hxg3 {[%emt 0:00:00]} Kc7 {[%emt 0:00:00]} 44. g4 {[%emt 0:00:00]} Kb6 {[%emt 0:00:00]} 45. g5 {[%emt 0:00:00]} Kxb5 {[%emt 0:00:00]} 46. g6 {[%emt 0:00:00]} Rc7 {[%emt 0:00:00]} 47. Ne8 {[%emt 0:00:00]} 1-0

[Event "EYTCC Open U18 2018"]
[Site "Bad Blankeburg"]
[Date "2018.07.14"]
[Round "3"]
[White "Szabo, Marton Mihaly"]
[Black "Subelj, Jan"]
[Result "0-1"]
[ECO "C44"]
[WhiteElo "2371"]
[BlackElo "2327"]
[Annotator "NA"]
[PlyCount "85"]
[EventDate "2018.07.12"]
[EventType "swiss"]
[EventCountry "GER"]
[SourceTitle "playchess.com"]
[Source "ChessBase"]
[SourceQuality "1"]
[TimeControl "40/5400+30:1800+30"]

1. e4 {[%emt 0:00:00]} e5 {[%emt 0:00:53]} 2. Nf3 {[%emt 0:00:00]} Nc6 {[%emt 0:00:10]} 3. d4 {[%emt 0:00:32]} exd4 {[%emt 0:00:11]} 4. Nxd4 {[%emt 0:00:29]} Nf6 {[%emt 0:00:36]} 5. Nxc6 {[%emt 0:00:13]} bxc6 {[%emt 0:00:04]} 6. Qe2 {[%emt 0:00:20] LiveBook: 142 Games C45: Scotch Game} (6. Bd3 d5 7. e5 Ng4 8. O-O Bc5 9. Bf4 g5 10. Bd2 O-O 11. Nc3 Nxe5 12. Qh5 Nxd3 13. cxd3 f6 14. Rac1 Bf5 15. Rfe1 Bxd3 16. Qh3 Bg6 17. Qe6+ {½-½ (57) Vachier Lagrave,M (2789)-Anand,V (2759) Paris 2018}) 6... Bc5 {[%emt 0:13:42]} 7. e5 {[%emt 0:00:18]} Nd5 {[%emt 0:00:08]} 8. Qg4 {[%emt 0:00:36]} Kf8 {[%emt 0:03:27]} 9. c4 {[%emt 0:03:49]} d6 $146 {[%emt 0:03:57]} ({Predecessor:} 9... Nb6 10. Qe4 d5 11. exd6 Qf6 12. Qf4 Bf5 13. Be2 Re8 14. dxc7 {1-0 (33) Kulkarni,R (2390)-Vajda,L (2577) Budapest 2018}) 10. Qe4 {[%emt 0:02:16]} Ne7 {[%emt 0:01:36]} 11. exd6 {[%emt 0:05:16]} cxd6 {[%emt 0:03:14]} 12. Bd3 {[%emt 0:13:33]} Qa5+ {[%emt 0:26:44]} 13. Bd2 {[%emt 0:12:34]} Qb6 {[%emt 0:02:04]} 14. O-O {[%emt 0:01:27]} Qxb2 {[%emt 0:01:37]} 15. Bc3 {[%emt 0:01:37]} Qb7 {[%emt 0:00:26]} 16. Nd2 {[%emt 0:09:42]} d5 {[%emt 0:05:12]} 17. Qe5 {[%emt 0:09:34]} f6 {[%emt 0:00:47]} 18. Qh5 {[%emt 0:00:12]} Be6 {[%emt 0:04:56]} 19. Qe2 {[%emt 0:05:44]} Bf7 {[%emt 0:06:57]} 20. Nb3 {[%emt 0:01:08]} Bd6 {[%emt 0:02:08]} 21. c5 {[%emt 0:00:36]} Bb8 $14 {[%emt 0:00:44]} 22. Ba6 {[%emt 0:02:11]} Qd7 {[%emt 0:01:04]} 23. Rab1 {[%emt 0:04:41]} Ng6 {[%emt 0:03:31]} 24. g3 {[%emt 0:06:19]} Be5 {[%emt 0:01:48]} 25. Nd4 {[%emt 0:02:53]} Re8 {[%emt 0:00:43]} 26. Qf3 {[%emt 0:01:40]} h5 {[%emt 0:07:05]} 27. Rb7 {[%emt 0:08:11]} Qh3 {[%emt 0:00:07]} 28. Rfb1 {[%emt 0:03:28]} Bxd4 {[%emt 0:00:35]} 29. Bxd4 {[%emt 0:00:44]} Nh4 {[%emt 0:00:18]} 30. Qh1 {[%emt 0:00:56]} Bg6 {[%emt 0:00:25]} 31. gxh4 {[%emt 0:02:12]} Be4 {[%emt 0:00:53]} 32. R7b3 {[%emt 0:01:04]} Qf5 {[%emt 0:00:23]} 33. f3 {[%emt 0:01:39]} Bxb1 {[%emt 0:00:03]} 34. Kf2 {[%emt 0:00:27]} Qc2+ {[%emt 0:00:45]} 35. Kg3 {[%emt 0:00:06]} Qg6+ {[%emt 0:03:56]} 36. Kf2 {[%emt 0:00:15]} Bxa2 {[%emt 0:00:23]} 37. Rb2 {[%emt 0:00:23]} Bc4 {[%emt 0:00:05]} 38. Bxc4 {[%emt 0:00:54]} dxc4 {[%emt 0:00:02]} 39. Rd2 {[%emt 0:00:27]} Qh6 {[%emt 0:01:19]} 40. Qc1 {[%emt 0:00:58]} Qf4 {[%emt 0:00:13]} 41. Kf1 {[%emt 0:02:28]} Qxf3+ {[%emt 0:01:50]} 42. Bf2 {[%emt 0:00:09]} Rh6 {[%emt 0:02:39]} 43. Qd1 0-1